[Event "Late-Titled-Tuesday-Blitz-December-26-2023"]
[Site "Chess.com"]
[Date "2023.12.26"]
[Round "1"]
[White "NovakRatko"]
[Black "chenxiaoyuer"]
[Result "1-0"]
[WhiteElo "2439"]
[BlackElo "2724"]
[TimeControl "180+1"]
[EndTime "14:06:34 PST"]
[Termination "NovakRatko won by checkmate"]

1. d4 {[%clk 0:02:57.1]} 1... Nf6 {[%clk 0:02:56.7]} 2. c4 {[%clk 0:02:57.4]}
2... g6 {[%clk 0:02:57.1]} 3. Nc3 {[%clk 0:02:57]} 3... Bg7 {[%clk 0:02:57.7]}
4. e4 {[%clk 0:02:57.6]} 4... d6 {[%clk 0:02:58.1]} 5. f3 {[%clk 0:02:58.3]}
5... O-O {[%clk 0:02:57.9]} 6. Be3 {[%clk 0:02:58.7]} 6... c5 {[%clk 0:02:58.4]}
7. dxc5 {[%clk 0:02:59.6]} 7... dxc5 {[%clk 0:02:58.7]} 8. Qxd8 {[%clk
0:03:00.3]} 8... Rxd8 {[%clk 0:02:59.6]} 9. Bxc5 {[%clk 0:03:00.9]} 9... Nc6
{[%clk 0:03:00.2]} 10. Nd5 {[%clk 0:03:01.5]} 10... Nd7 {[%clk 0:03:00.7]} 11.
Nxe7+ {[%clk 0:03:01.5]} 11... Nxe7 {[%clk 0:03:01.2]} 12. Bxe7 {[%clk
0:03:02.4]} 12... Bxb2 {[%clk 0:02:58.3]} 13. Bxd8 {[%clk 0:03:01.8]} 13... Bxa1
{[%clk 0:02:57]} 14. Bg5 {[%clk 0:02:59]} 14... Ne5 {[%clk 0:02:54.8]} 15. Kf2
{[%clk 0:02:54.9]} 15... Be6 {[%clk 0:02:53.1]} 16. Nh3 {[%clk 0:02:55.1]} 16...
Rc8 {[%clk 0:02:50.4]} 17. Nf4 {[%clk 0:02:54.6]} 17... Bd4+ {[%clk 0:02:47.8]}
18. Kg3 {[%clk 0:02:52.5]} 18... Bxc4 {[%clk 0:02:41.3]} 19. Bxc4 {[%clk
0:02:52]} 19... Nxc4 {[%clk 0:02:40.8]} 20. Nd5 {[%clk 0:02:49.3]} 20... Kf8
{[%clk 0:02:27.6]} 21. Rc1 {[%clk 0:02:47]} 21... b5 {[%clk 0:02:25.7]} 22. a4
{[%clk 0:02:46.2]} 22... a6 {[%clk 0:02:23.9]} 23. axb5 {[%clk 0:02:45.8]} 23...
axb5 {[%clk 0:02:24.8]} 24. h4 {[%clk 0:02:26.6]} 24... b4 {[%clk 0:02:19.3]}
25. Be3 {[%clk 0:02:22.1]} 25... Bxe3 {[%clk 0:02:12.5]} 26. Nxe3 {[%clk
0:02:21.7]} 26... Nd6 {[%clk 0:02:11.5]} 27. Rb1 {[%clk 0:02:16.2]} 27... Rb8
{[%clk 0:02:09.6]} 28. Rb3 {[%clk 0:02:16.1]} 28... Ke7 {[%clk 0:01:58.8]} 29.
Rxb4 {[%clk 0:02:14.5]} 29... Rxb4 {[%clk 0:01:53]} 30. Nd5+ {[%clk 0:02:14.1]}
30... Ke6 {[%clk 0:01:53.5]} 31. Nxb4 {[%clk 0:02:14.8]} 31... f5 {[%clk
0:01:52.8]} 32. Kf4 {[%clk 0:02:10.1]} 32... fxe4 {[%clk 0:01:52]} 33. fxe4
{[%clk 0:02:08.6]} 33... h6 {[%clk 0:01:51.4]} 34. Nc6 {[%clk 0:01:53.3]} 34...
Nf7 {[%clk 0:01:44.4]} 35. Nd4+ {[%clk 0:01:46.8]} 35... Kf6 {[%clk 0:01:43.7]}
36. Nf3 {[%clk 0:01:46]} 36... g5+ {[%clk 0:01:43.5]} 37. hxg5+ {[%clk
0:01:45.9]} 37... hxg5+ {[%clk 0:01:44.4]} 38. Kg4 {[%clk 0:01:42.3]} 38... Nh6+
{[%clk 0:01:43]} 39. Kh5 {[%clk 0:01:40.5]} 39... Nf7 {[%clk 0:01:41.9]} 40. g3
{[%clk 0:01:12.3]} 40... Nd8 {[%clk 0:01:24.7]} 41. Nxg5 {[%clk 0:01:11.5]}
41... Nc6 {[%clk 0:01:24]} 42. Nf3 {[%clk 0:01:10.8]} 42... Nb4 {[%clk
0:01:20.7]} 43. g4 {[%clk 0:01:09.9]} 43... Nd3 {[%clk 0:01:20.3]} 44. g5+
{[%clk 0:01:09.1]} 44... Ke6 {[%clk 0:01:18.2]} 45. Kh6 {[%clk 0:01:06]} 45...
Nf2 {[%clk 0:01:16.8]} 46. e5 {[%clk 0:00:51.3]} 46... Ng4+ {[%clk 0:01:13.9]}
47. Kg7 {[%clk 0:00:50.7]} 47... Kf5 {[%clk 0:01:07.8]} 48. g6 {[%clk
0:00:48.3]} 48... Ke6 {[%clk 0:01:06.9]} 49. Kf8 {[%clk 0:00:44.3]} 49... Nxe5
{[%clk 0:00:59.4]} 50. Nxe5 {[%clk 0:00:43.7]} 50... Kf6 {[%clk 0:01:00.3]} 51.
g7 {[%clk 0:00:43.2]} 51... Kxe5 {[%clk 0:01:00.4]} 52. g8=Q {[%clk 0:00:43]}
52... Kd4 {[%clk 0:01:01.3]} 53. Qg5 {[%clk 0:00:42.6]} 53... Kc3 {[%clk
0:01:01.2]} 54. Ke7 {[%clk 0:00:43.4]} 54... Kb2 {[%clk 0:01:01.5]} 55. Kd6
{[%clk 0:00:44.1]} 55... Ka1 {[%clk 0:01:02.1]} 56. Qg2 {[%clk 0:00:44.2]} 56...
Kb1 {[%clk 0:01:02.3]} 57. Kc5 {[%clk 0:00:44.8]} 57... Ka1 {[%clk 0:01:03.2]}
58. Kb5 {[%clk 0:00:45.6]} 58... Kb1 {[%clk 0:01:04.1]} 59. Kc4 {[%clk
0:00:45.9]} 59... Ka1 {[%clk 0:01:05]} 60. Kc3 {[%clk 0:00:46.4]} 60... Kb1
{[%clk 0:01:05.9]} 61. Qb2# {[%clk 0:00:46.4]} 1-0

[Event "Late-Titled-Tuesday-Blitz-December-26-2023"]
[Site "Chess.com"]
[Date "2023.12.26"]
[Round "1"]
[White "nindjaxx8"]
[Black "BestestBP"]
[Result "1-0"]
[WhiteElo "2552"]
[BlackElo "2198"]
[TimeControl "180+1"]
[EndTime "14:06:40 PST"]
[Termination "nindjaxx8 won on time"]

1. d4 {[%clk 0:02:58.6]} 1... Nf6 {[%clk 0:02:59.5]} 2. c4 {[%clk 0:02:57.9]}
2... e6 {[%clk 0:02:59.9]} 3. Nc3 {[%clk 0:02:58]} 3... Bb4 {[%clk 0:02:59.3]}
4. Nf3 {[%clk 0:02:54]} 4... c5 {[%clk 0:02:57.6]} 5. e3 {[%clk 0:02:53.7]} 5...
O-O {[%clk 0:02:57.3]} 6. Be2 {[%clk 0:02:51.8]} 6... d5 {[%clk 0:02:57.6]} 7.
O-O {[%clk 0:02:51.4]} 7... dxc4 {[%clk 0:02:58]} 8. Bxc4 {[%clk 0:02:51.1]}
8... Nc6 {[%clk 0:02:57.8]} 9. dxc5 {[%clk 0:02:49.9]} 9... Bxc5 {[%clk
0:02:57.2]} 10. Qe2 {[%clk 0:02:49.7]} 10... Qe7 {[%clk 0:02:52.4]} 11. b3
{[%clk 0:02:49.4]} 11... e5 {[%clk 0:02:41.9]} 12. Bb2 {[%clk 0:02:47.6]} 12...
e4 {[%clk 0:02:38.2]} 13. Nd2 {[%clk 0:02:47.4]} 13... Bg4 {[%clk 0:02:35.1]}
14. Qe1 {[%clk 0:02:41.9]} 14... Rfd8 {[%clk 0:02:35.2]} 15. h3 {[%clk
0:02:40.7]} 15... Bh5 {[%clk 0:02:34.8]} 16. Ne2 {[%clk 0:02:30.8]} 16... Nb4
{[%clk 0:02:18.4]} 17. Qc1 {[%clk 0:02:19.4]} 17... Bxe2 {[%clk 0:01:57.6]} 18.
Bxe2 {[%clk 0:02:20.3]} 18... Nd3 {[%clk 0:01:57.9]} 19. Bxd3 {[%clk 0:02:17.6]}
19... Rxd3 {[%clk 0:01:57.8]} 20. Bxf6 {[%clk 0:02:13.8]} 20... gxf6 {[%clk
0:01:58.7]} 21. Nxe4 {[%clk 0:02:11.1]} 21... Qxe4 {[%clk 0:01:42.4]} 22. Qxc5
{[%clk 0:02:10.6]} 22... Rd5 {[%clk 0:01:37.8]} 23. Qc7 {[%clk 0:02:06.8]} 23...
Rg5 {[%clk 0:01:35.6]} 24. g3 {[%clk 0:02:05.7]} 24... h5 {[%clk 0:00:49.5]} 25.
Qf4 {[%clk 0:01:59.7]} 25... Qg6 {[%clk 0:00:46.2]} 26. Kh2 {[%clk 0:01:55.5]}
26... Re8 {[%clk 0:00:41.6]} 27. Rad1 {[%clk 0:01:51.3]} 27... Kg7 {[%clk
0:00:19.8]} 28. Rd4 {[%clk 0:01:44.2]} 28... Qc2 {[%clk 0:00:18.6]} 29. Kg1
{[%clk 0:01:34.1]} 29... Qc8 {[%clk 0:00:14.2]} 30. h4 {[%clk 0:01:32.7]} 30...
Rg4 {[%clk 0:00:12.9]} 31. Qd6 {[%clk 0:01:27.2]} 31... Rg6 {[%clk 0:00:12]} 32.
Rfd1 {[%clk 0:01:24.9]} 32... Qh3 {[%clk 0:00:12]} 33. Qc7 {[%clk 0:01:07.9]}
33... Rxe3 {[%clk 0:00:11.2]} 34. R4d3 {[%clk 0:00:54.8]} 34... Re2 {[%clk
0:00:05.7]} 35. Rd7 {[%clk 0:00:50.8]} 35... Kh6 {[%clk 0:00:01.4]} 36. Rxf7
{[%clk 0:00:49.1]} 1-0

[Event "Late-Titled-Tuesday-Blitz-December-26-2023"]
[Site "Chess.com"]
[Date "2023.12.26"]
[Round "1"]
[White "Alex_Banzea"]
[Black "Maect19"]
[Result "1-0"]
[WhiteElo "2649"]
[BlackElo "2349"]
[TimeControl "180+1"]
[EndTime "14:06:41 PST"]
[Termination "Alex_Banzea won by resignation"]

1. d4 {[%clk 0:02:54.7]} 1... d5 {[%clk 0:02:58.6]} 2. Nc3 {[%clk 0:01:51.3]}
2... Nf6 {[%clk 0:02:56]} 3. Bf4 {[%clk 0:01:51.7]} 3... e6 {[%clk 0:02:55.4]}
4. Nb5 {[%clk 0:01:47]} 4... Na6 {[%clk 0:02:55]} 5. e3 {[%clk 0:01:46]} 5... c6
{[%clk 0:02:54.9]} 6. Nc3 {[%clk 0:01:46]} 6... Nc7 {[%clk 0:02:54.8]} 7. Nf3
{[%clk 0:01:45]} 7... Bd6 {[%clk 0:02:54.5]} 8. Ne5 {[%clk 0:01:45.7]} 8... Qe7
{[%clk 0:02:46.6]} 9. Bd3 {[%clk 0:01:46]} 9... Nd7 {[%clk 0:02:44.3]} 10. Qg4
{[%clk 0:01:30.2]} 10... Bxe5 {[%clk 0:02:36.2]} 11. dxe5 {[%clk 0:01:28.9]}
11... O-O {[%clk 0:02:25.1]} 12. O-O-O {[%clk 0:01:17.1]} 12... f5 {[%clk
0:02:13]} 13. exf6 {[%clk 0:01:12.5]} 13... Nxf6 {[%clk 0:02:12.9]} 14. Qg3
{[%clk 0:01:06.1]} 14... Nce8 {[%clk 0:02:03.2]} 15. Be5 {[%clk 0:00:58.1]}
15... Nd7 {[%clk 0:01:53.1]} 16. f4 {[%clk 0:00:55.4]} 16... Nxe5 {[%clk
0:01:51.5]} 17. fxe5 {[%clk 0:00:56.3]} 17... b6 {[%clk 0:01:49.2]} 18. h4
{[%clk 0:00:41.7]} 18... Bb7 {[%clk 0:01:47.3]} 19. h5 {[%clk 0:00:41.7]} 19...
Nc7 {[%clk 0:01:43.2]} 20. Rh4 {[%clk 0:00:32.9]} 20... Rf7 {[%clk 0:01:40.8]}
21. Bg6 {[%clk 0:00:30.2]} 21... Rff8 {[%clk 0:01:27.3]} 22. Rg4 {[%clk
0:00:30.5]} 22... Nb5 {[%clk 0:01:14.7]} 23. Nxb5 {[%clk 0:00:26.6]} 23... cxb5
{[%clk 0:01:15.6]} 24. h6 {[%clk 0:00:20.4]} 24... hxg6 {[%clk 0:01:08.4]} 25.
Rxg6 {[%clk 0:00:21.3]} 25... Rf7 {[%clk 0:01:08.5]} 26. Rd4 {[%clk 0:00:15.7]}
26... Kh8 {[%clk 0:00:43.9]} 27. hxg7+ {[%clk 0:00:14.6]} 27... Rxg7 {[%clk
0:00:42]} 28. Rh4+ {[%clk 0:00:15.2]} 28... Kg8 {[%clk 0:00:41.3]} 29. Rxg7+
{[%clk 0:00:15.2]} 29... Qxg7 {[%clk 0:00:41.3]} 30. Rg4 {[%clk 0:00:15.7]}
30... Qxg4 {[%clk 0:00:40.4]} 31. Qxg4+ {[%clk 0:00:16.6]} 31... Kf7 {[%clk
0:00:40.8]} 32. Qh5+ {[%clk 0:00:17.3]} 32... Kg7 {[%clk 0:00:36.2]} 33. Qg5+
{[%clk 0:00:17.6]} 33... Kh8 {[%clk 0:00:35]} 34. Qf6+ {[%clk 0:00:14.4]} 34...
Kh7 {[%clk 0:00:34.7]} 35. Qf7+ {[%clk 0:00:14.7]} 1-0

[Event "Late-Titled-Tuesday-Blitz-December-26-2023"]
[Site "Chess.com"]
[Date "2023.12.26"]
[Round "1"]
[White "sofaceindisguise"]
[Black "micke12a"]
[Result "1-0"]
[WhiteElo "2722"]
[BlackElo "2409"]
[TimeControl "180+1"]
[EndTime "14:06:43 PST"]
[Termination "sofaceindisguise won by resignation"]

1. d4 {[%clk 0:02:17.6]} 1... Nf6 {[%clk 0:02:55.9]} 2. c4 {[%clk 0:02:17.8]}
2... e6 {[%clk 0:02:53.5]} 3. Nc3 {[%clk 0:02:18]} 3... d5 {[%clk 0:02:53.7]} 4.
cxd5 {[%clk 0:02:17.5]} 4... Nxd5 {[%clk 0:02:53.5]} 5. e3 {[%clk 0:02:16]} 5...
c5 {[%clk 0:02:52.4]} 6. Bc4 {[%clk 0:02:13.1]} 6... Nb6 {[%clk 0:02:45.7]} 7.
Bb5+ {[%clk 0:02:11.2]} 7... Bd7 {[%clk 0:02:44.8]} 8. Bd3 {[%clk 0:01:57.3]}
8... cxd4 {[%clk 0:02:43.9]} 9. exd4 {[%clk 0:01:57.3]} 9... Nc6 {[%clk
0:02:43.3]} 10. Nf3 {[%clk 0:01:57.4]} 10... Nb4 {[%clk 0:02:33.7]} 11. Bb1
{[%clk 0:01:54.3]} 11... N4d5 {[%clk 0:02:32]} 12. O-O {[%clk 0:01:51.6]} 12...
Be7 {[%clk 0:02:31.9]} 13. Ne5 {[%clk 0:01:49.8]} 13... Bf6 {[%clk 0:02:19.1]}
14. Ne4 {[%clk 0:01:43.3]} 14... Qe7 {[%clk 0:02:10.5]} 15. Qf3 {[%clk
0:01:27.3]} 15... Rc8 {[%clk 0:02:05.4]} 16. a3 {[%clk 0:01:19]} 16... Nc4
{[%clk 0:01:55.2]} 17. Qg3 {[%clk 0:01:16.7]} 17... g6 {[%clk 0:01:29.5]} 18.
Nxf6+ {[%clk 0:01:13.3]} 18... Nxf6 {[%clk 0:01:22.9]} 19. b3 {[%clk 0:01:11.2]}
19... Nxe5 {[%clk 0:01:19.5]} 20. dxe5 {[%clk 0:01:11.1]} 20... Nd5 {[%clk
0:01:19.7]} 21. Bh6 {[%clk 0:01:06.2]} 21... Rc3 {[%clk 0:01:16.7]} 22. Qg4
{[%clk 0:01:05.9]} 22... Bb5 {[%clk 0:01:11.1]} 23. Rd1 {[%clk 0:01:03.8]} 23...
Rxb3 {[%clk 0:01:07.1]} 24. a4 {[%clk 0:00:59.7]} 24... Rb4 {[%clk 0:00:57.6]}
25. Qg3 {[%clk 0:00:57.9]} 25... Rxa4 {[%clk 0:00:56.5]} 26. Rxa4 {[%clk
0:00:52.8]} 26... Bxa4 {[%clk 0:00:56.8]} 27. Rc1 {[%clk 0:00:51.9]} 27... Bc6
{[%clk 0:00:56.6]} 28. h4 {[%clk 0:00:52.2]} 28... a5 {[%clk 0:00:51.1]} 29. Be4
{[%clk 0:00:42.7]} 29... Kd7 {[%clk 0:00:42.9]} 30. Bg5 {[%clk 0:00:40.2]} 30...
Qb4 {[%clk 0:00:40.8]} 31. Qf3 {[%clk 0:00:38.8]} 31... Ke8 {[%clk 0:00:29.1]}
32. Bxd5 {[%clk 0:00:37.4]} 32... exd5 {[%clk 0:00:16.7]} 33. Qf6 {[%clk
0:00:35.4]} 1-0

[Event "Late-Titled-Tuesday-Blitz-December-26-2023"]
[Site "Chess.com"]
[Date "2023.12.26"]
[Round "1"]
[White "rdarruda"]
[Black "frequentblunders"]
[Result "1-0"]
[WhiteElo "2538"]
[BlackElo "2132"]
[TimeControl "180+1"]
[EndTime "14:06:43 PST"]
[Termination "rdarruda won by resignation"]

1. d4 {[%clk 0:02:57.7]} 1... e6 {[%clk 0:03:00.8]} 2. e4 {[%clk 0:02:57]} 2...
c5 {[%clk 0:03:00.3]} 3. d5 {[%clk 0:02:55.8]} 3... exd5 {[%clk 0:03:00.5]} 4.
exd5 {[%clk 0:02:55.7]} 4... d6 {[%clk 0:03:01.4]} 5. Nf3 {[%clk 0:02:55.1]}
5... f5 {[%clk 0:03:02.3]} 6. Nc3 {[%clk 0:02:51.4]} 6... Nf6 {[%clk 0:03:03.2]}
7. Bg5 {[%clk 0:02:50.2]} 7... Be7 {[%clk 0:03:04.1]} 8. Bd3 {[%clk 0:02:50]}
8... O-O {[%clk 0:03:04]} 9. O-O {[%clk 0:02:49.8]} 9... h6 {[%clk 0:03:04.2]}
10. Bd2 {[%clk 0:02:44.8]} 10... Nbd7 {[%clk 0:03:04.1]} 11. Re1 {[%clk
0:02:43.6]} 11... Nb6 {[%clk 0:02:52.9]} 12. a4 {[%clk 0:02:40.7]} 12... a5
{[%clk 0:02:52.2]} 13. h3 {[%clk 0:02:34.4]} 13... c4 {[%clk 0:02:50.5]} 14. Bf1
{[%clk 0:02:33.8]} 14... Qc7 {[%clk 0:02:49.2]} 15. Be3 {[%clk 0:02:31.2]} 15...
Nbd7 {[%clk 0:02:38]} 16. Nd4 {[%clk 0:02:28.3]} 16... Ne5 {[%clk 0:02:36.9]}
17. f4 {[%clk 0:02:11.1]} 17... Nf7 {[%clk 0:02:27.6]} 18. Qe2 {[%clk
0:02:10.1]} 18... Bd7 {[%clk 0:02:04.6]} 19. Qxc4 {[%clk 0:02:08.4]} 19... Qxc4
{[%clk 0:01:50.2]} 20. Bxc4 {[%clk 0:02:09.3]} 20... Rac8 {[%clk 0:01:50.3]} 21.
Bb3 {[%clk 0:02:09.2]} 21... Rxc3 {[%clk 0:01:00.3]} 22. bxc3 {[%clk 0:02:07.3]}
22... Ne4 {[%clk 0:01:01.2]} 23. Ne6 {[%clk 0:01:40.5]} 23... Rc8 {[%clk
0:00:53.8]} 24. Bd4 {[%clk 0:01:38.6]} 24... Bf6 {[%clk 0:00:25.7]} 25. Re3
{[%clk 0:01:20]} 25... Nxc3 {[%clk 0:00:19.1]} 26. Bxf6 {[%clk 0:01:17.3]} 26...
gxf6 {[%clk 0:00:15.4]} 27. Rg3+ {[%clk 0:01:11.3]} 27... Kh8 {[%clk 0:00:14]}
28. Re1 {[%clk 0:01:00.8]} 28... Nxa4 {[%clk 0:00:05.7]} 29. Ra1 {[%clk
0:00:51.7]} 29... Nc5 {[%clk 0:00:05.5]} 30. Rxa5 {[%clk 0:00:51.8]} 30... Nxb3
{[%clk 0:00:05.9]} 31. Rxb3 {[%clk 0:00:45.9]} 31... Rxc2 {[%clk 0:00:05.4]} 32.
Rxb7 {[%clk 0:00:45.2]} 32... Bxe6 {[%clk 0:00:05.3]} 33. dxe6 {[%clk
0:00:44.8]} 33... Nd8 {[%clk 0:00:05.3]} 34. Ra8 {[%clk 0:00:44.4]} 1-0

[Event "Late-Titled-Tuesday-Blitz-December-26-2023"]
[Site "Chess.com"]
[Date "2023.12.26"]
[Round "1"]
[White "CarlosjPineror"]
[Black "DuleMudule"]
[Result "0-1"]
[WhiteElo "2491"]
[BlackElo "2918"]
[TimeControl "180+1"]
[EndTime "14:06:47 PST"]
[Termination "DuleMudule won on time"]

1. e4 {[%clk 0:02:59]} 1... c5 {[%clk 0:02:59.2]} 2. Nf3 {[%clk 0:02:58.3]} 2...
Nc6 {[%clk 0:02:59.7]} 3. c4 {[%clk 0:02:48.2]} 3... e6 {[%clk 0:02:59]} 4. d4
{[%clk 0:02:44.2]} 4... cxd4 {[%clk 0:02:59.9]} 5. Nxd4 {[%clk 0:02:44.6]} 5...
Qc7 {[%clk 0:03:00.1]} 6. a3 {[%clk 0:02:37.4]} 6... a6 {[%clk 0:02:59.9]} 7.
Be3 {[%clk 0:02:34.5]} 7... Nf6 {[%clk 0:03:00.1]} 8. Nc3 {[%clk 0:02:33.3]}
8... h5 {[%clk 0:02:57.4]} 9. h3 {[%clk 0:02:17.7]} 9... Ne5 {[%clk 0:02:47.3]}
10. Rc1 {[%clk 0:02:15.7]} 10... Ng6 {[%clk 0:02:46.9]} 11. Qd2 {[%clk
0:01:39.6]} 11... h4 {[%clk 0:02:36.3]} 12. Be2 {[%clk 0:01:36.4]} 12... b6
{[%clk 0:02:35.7]} 13. f4 {[%clk 0:01:28.6]} 13... Bb7 {[%clk 0:02:33.9]} 14.
Bf3 {[%clk 0:01:27.3]} 14... Nh5 {[%clk 0:02:32]} 15. Nce2 {[%clk 0:00:53.9]}
15... Bd6 {[%clk 0:02:22.4]} 16. e5 {[%clk 0:00:41.7]} 16... Be7 {[%clk
0:02:19.4]} 17. O-O {[%clk 0:00:32.1]} 17... Bxf3 {[%clk 0:02:14.2]} 18. Nxf3
{[%clk 0:00:26.3]} 18... f5 {[%clk 0:02:08.2]} 19. b4 {[%clk 0:00:23.2]} 19...
O-O {[%clk 0:02:05]} 20. Rfd1 {[%clk 0:00:22.6]} 20... Rfd8 {[%clk 0:02:03.5]}
21. c5 {[%clk 0:00:22.9]} 21... b5 {[%clk 0:02:01.5]} 22. Qe1 {[%clk 0:00:19.8]}
22... a5 {[%clk 0:01:58.8]} 23. Nfd4 {[%clk 0:00:15.5]} 23... axb4 {[%clk
0:01:57.9]} 24. axb4 {[%clk 0:00:16.4]} 24... Qb7 {[%clk 0:01:57.9]} 25. Qf2
{[%clk 0:00:15.4]} 25... Ra3 {[%clk 0:01:54.2]} 26. Rc3 {[%clk 0:00:08.1]} 26...
Rda8 {[%clk 0:01:52.3]} 27. Rdc1 {[%clk 0:00:06.6]} 27... Rxc3 {[%clk 0:01:51]}
28. Rxc3 {[%clk 0:00:06.6]} 28... Ra2 {[%clk 0:01:46.4]} 29. Qf3 {[%clk
0:00:05.9]} 29... Qxf3 {[%clk 0:01:43.4]} 30. gxf3 {[%clk 0:00:06.8]} 30... Rb2
{[%clk 0:01:38.6]} 31. Rb3 {[%clk 0:00:06.2]} 31... Ra2 {[%clk 0:01:34.8]} 32.
Nc3 {[%clk 0:00:06.5]} 32... Ra1+ {[%clk 0:01:32.4]} 33. Rb1 {[%clk 0:00:06.9]}
33... Ra8 {[%clk 0:01:09.6]} 34. Nce2 {[%clk 0:00:05.3]} 34... Ra2 {[%clk
0:01:06.9]} 35. Kf2 {[%clk 0:00:04.4]} 35... Nhxf4 {[%clk 0:01:05.9]} 36. Bxf4
{[%clk 0:00:03.6]} 36... Nxf4 {[%clk 0:01:06.8]} 37. Rc1 {[%clk 0:00:02.5]}
37... Nxh3+ {[%clk 0:01:04.9]} 38. Ke1 {[%clk 0:00:01.1]} 38... Bg5 {[%clk
0:01:03.4]} 39. Rc2 {[%clk 0:00:01.2]} 39... Ra1+ {[%clk 0:00:57.5]} 0-1

[Event "Late-Titled-Tuesday-Blitz-December-26-2023"]
[Site "Chess.com"]
[Date "2023.12.26"]
[Round "1"]
[White "JuniorJumper"]
[Black "frederiksvane"]
[Result "0-1"]
[WhiteElo "2496"]
[BlackElo "2971"]
[TimeControl "180+1"]
[EndTime "14:06:49 PST"]
[Termination "frederiksvane won on time"]

1. b3 {[%clk 0:03:00.9]} 1... d5 {[%clk 0:02:58.8]} 2. Bb2 {[%clk 0:03:01.5]}
2... Bg4 {[%clk 0:02:59]} 3. g3 {[%clk 0:03:00.8]} 3... e6 {[%clk 0:02:54.1]} 4.
Bg2 {[%clk 0:03:00.9]} 4... Nf6 {[%clk 0:02:54.1]} 5. Nf3 {[%clk 0:03:01.5]}
5... Nbd7 {[%clk 0:02:53.1]} 6. O-O {[%clk 0:03:01.5]} 6... Be7 {[%clk
0:02:52.3]} 7. d3 {[%clk 0:03:02.1]} 7... O-O {[%clk 0:02:52.4]} 8. Nbd2 {[%clk
0:03:02.8]} 8... a5 {[%clk 0:02:52]} 9. a4 {[%clk 0:03:02]} 9... c6 {[%clk
0:02:52.1]} 10. h3 {[%clk 0:03:01.2]} 10... Bh5 {[%clk 0:02:48.9]} 11. e4 {[%clk
0:03:00.2]} 11... h6 {[%clk 0:02:44.9]} 12. Qe2 {[%clk 0:02:59.7]} 12... Qc7
{[%clk 0:02:41.7]} 13. e5 {[%clk 0:02:35.3]} 13... Nh7 {[%clk 0:02:36.7]} 14. g4
{[%clk 0:02:23]} 14... Bg6 {[%clk 0:02:36.9]} 15. Nh2 {[%clk 0:02:22.8]} 15...
Rae8 {[%clk 0:02:34.9]} 16. f4 {[%clk 0:02:23.1]} 16... f6 {[%clk 0:02:28.2]}
17. f5 {[%clk 0:02:18.7]} 17... Bf7 {[%clk 0:02:28.2]} 18. fxe6 {[%clk
0:02:11.8]} 18... Bxe6 {[%clk 0:02:29]} 19. Ndf3 {[%clk 0:01:56.3]} 19... fxe5
{[%clk 0:02:24.5]} 20. Nxe5 {[%clk 0:01:56.4]} 20... Bd6 {[%clk 0:02:23.8]} 21.
Nhf3 {[%clk 0:01:45]} 21... Bxg4 {[%clk 0:02:08.5]} 22. hxg4 {[%clk 0:01:24.7]}
22... Nxe5 {[%clk 0:02:08]} 23. Nxe5 {[%clk 0:01:00.6]} 23... Bxe5 {[%clk
0:02:08.9]} 24. Rxf8+ {[%clk 0:00:55.6]} 24... Nxf8 {[%clk 0:02:09.8]} 25. Bxe5
{[%clk 0:00:43.2]} 25... Rxe5 {[%clk 0:02:10.7]} 26. Qf2 {[%clk 0:00:42.8]}
26... Qe7 {[%clk 0:02:11]} 27. Bf3 {[%clk 0:00:40.9]} 27... Nh7 {[%clk
0:02:04.4]} 28. Rf1 {[%clk 0:00:37.5]} 28... Ng5 {[%clk 0:02:04.1]} 29. Bg2
{[%clk 0:00:36.3]} 29... Re2 {[%clk 0:02:02.7]} 30. Qf5 {[%clk 0:00:36.9]} 30...
Qe3+ {[%clk 0:01:56.3]} 31. Kh1 {[%clk 0:00:36.8]} 31... Qe6 {[%clk 0:01:46.4]}
32. Qf4 {[%clk 0:00:32.9]} 32... Kh7 {[%clk 0:01:41]} 33. c3 {[%clk 0:00:30.9]}
33... Re1 {[%clk 0:01:24.2]} 34. Rxe1 {[%clk 0:00:18.8]} 34... Qxe1+ {[%clk
0:01:24.4]} 35. Kh2 {[%clk 0:00:19.7]} 35... Qxc3 {[%clk 0:01:24.1]} 36. Qf5+
{[%clk 0:00:19.9]} 36... g6 {[%clk 0:01:24.2]} 37. Qd7+ {[%clk 0:00:18.4]} 37...
Qg7 {[%clk 0:01:24.7]} 38. Qd8 {[%clk 0:00:19.1]} 38... Ne6 {[%clk 0:01:23.5]}
39. Qxa5 {[%clk 0:00:18.4]} 39... Qe5+ {[%clk 0:01:20.4]} 40. Kh1 {[%clk
0:00:17]} 40... Qa1+ {[%clk 0:01:17.2]} 41. Kh2 {[%clk 0:00:16.4]} 41... Qe5+
{[%clk 0:01:17.9]} 42. Kh1 {[%clk 0:00:16.6]} 42... Nf4 {[%clk 0:01:18.5]} 43.
Qb4 {[%clk 0:00:13]} 43... h5 {[%clk 0:01:09.1]} 44. Qxb7+ {[%clk 0:00:10.3]}
44... Kh6 {[%clk 0:01:09.4]} 45. Qxc6 {[%clk 0:00:05.8]} 45... Qe1+ {[%clk
0:01:01.5]} 46. Kh2 {[%clk 0:00:06.5]} 46... Qf2 {[%clk 0:01:01.6]} 0-1

[Event "Late-Titled-Tuesday-Blitz-December-26-2023"]
[Site "Chess.com"]
[Date "2023.12.26"]
[Round "1"]
[White "AljoschaFeuerstack"]
[Black "UK_23"]
[Result "1-0"]
[WhiteElo "2672"]
[BlackElo "2364"]
[TimeControl "180+1"]
[EndTime "14:06:49 PST"]
[Termination "AljoschaFeuerstack won by resignation"]

1. e4 {[%clk 0:02:59.8]} 1... e5 {[%clk 0:02:58.8]} 2. Bc4 {[%clk 0:02:57.7]}
2... Nf6 {[%clk 0:02:55.5]} 3. d3 {[%clk 0:02:57.7]} 3... Nc6 {[%clk 0:02:52.1]}
4. Nc3 {[%clk 0:02:57.4]} 4... Bb4 {[%clk 0:02:51.8]} 5. Ne2 {[%clk 0:02:57.1]}
5... d5 {[%clk 0:02:51.9]} 6. exd5 {[%clk 0:02:58]} 6... Nxd5 {[%clk 0:02:52.8]}
7. O-O {[%clk 0:02:58.1]} 7... Nxc3 {[%clk 0:02:53.4]} 8. bxc3 {[%clk
0:02:58.3]} 8... Bd6 {[%clk 0:02:53.5]} 9. f4 {[%clk 0:02:55.3]} 9... exf4
{[%clk 0:02:51.5]} 10. Nxf4 {[%clk 0:02:51.2]} 10... O-O {[%clk 0:02:49.1]} 11.
d4 {[%clk 0:02:29.4]} 11... Bf5 {[%clk 0:02:38.1]} 12. Qh5 {[%clk 0:02:07.6]}
12... Qd7 {[%clk 0:02:18.5]} 13. Nd5 {[%clk 0:01:46.2]} 13... Bg6 {[%clk
0:02:12.4]} 14. Qg5 {[%clk 0:01:44.6]} 14... Rae8 {[%clk 0:01:57.8]} 15. a4
{[%clk 0:01:22.8]} 15... a6 {[%clk 0:01:56.1]} 16. Rb1 {[%clk 0:01:07.5]} 16...
Nd8 {[%clk 0:01:42]} 17. h4 {[%clk 0:00:50.3]} 17... Ne6 {[%clk 0:01:25.3]} 18.
Qg4 {[%clk 0:00:44.1]} 18... h5 {[%clk 0:01:10.5]} 19. Qf3 {[%clk 0:00:27.3]}
19... Qxa4 {[%clk 0:01:05.6]} 20. Bb3 {[%clk 0:00:25.5]} 20... Qd7 {[%clk
0:00:57.2]} 21. Bh6 {[%clk 0:00:19.3]} 21... c6 {[%clk 0:00:53]} 22. Nf6+ {[%clk
0:00:19]} 22... gxf6 {[%clk 0:00:52.7]} 23. Qxf6 {[%clk 0:00:19.9]} 23... Qe7
{[%clk 0:00:44.4]} 24. Bxf8 {[%clk 0:00:19.9]} 24... Rxf8 {[%clk 0:00:29.7]} 25.
Qf2 {[%clk 0:00:13.2]} 25... Kg7 {[%clk 0:00:18]} 26. Rbe1 {[%clk 0:00:13.8]}
26... Qd7 {[%clk 0:00:15.5]} 27. Qf6+ {[%clk 0:00:12.9]} 27... Kg8 {[%clk
0:00:15.3]} 28. Rxe6 {[%clk 0:00:12.4]} 28... fxe6 {[%clk 0:00:15.8]} 29. Bxe6+
{[%clk 0:00:12.9]} 29... Qxe6 {[%clk 0:00:15.7]} 30. Qxe6+ {[%clk 0:00:13]} 1-0